bitfinex-derivatives/quotes_BTCF0:USTF0_20230402
["timestamp","ask_amount","ask_price","bid_price","bid_amount"]
[1680448217713,0.71198365,28105.0,28104.0,0.60520211]
[1680448218111,0.71198365,28105.0,28104.0,0.55520211]
[1680448218317,0.71198365,28105.0,28104.0,0.60520211]
[1680448218617,0.71198365,28105.0,28104.0,0.55546818]
[1680448219006,0.71198365,28105.0,28104.0,0.60546818]
[1680448219210,0.71198365,28105.0,28104.0,0.55546818]
[1680448219609,0.71198365,28105.0,28104.0,0.38588398]
[1680448220011,0.71198365,28105.0,28103.0,0.41284371]
[1680448220214,0.71198365,28105.0,28102.0,0.51783788]
[1680448220812,0.71198365,28105.0,28102.0,0.39063958]
[1680448221219,0.71198365,28105.0,28103.0,0.1771983]
[1680448221417,0.65852669,28105.0,28104.0,0.4278983]
[1680448221607,0.58673394,28105.0,28104.0,0.88563216]
[1680448222013,0.58673394,28105.0,28104.0,0.75843386]
[1680448222220,0.58673394,28105.0,28104.0,0.70843386]
[1680448222414,0.60400215,28105.0,28104.0,0.83553213]
[1680448222616,0.60400215,28105.0,28104.0,0.83553141]
[1680448222817,0.60400215,28105.0,28104.0,0.40773386]
[1680448223116,0.60400215,28105.0,28104.0,0.51366016]
[1680448223418,0.65400215,28105.0,28104.0,0.40773386]
[1680448223717,0.65400215,28105.0,28103.0,0.1059263]
[1680448223909,0.65400215,28105.0,28102.0,0.1059263]
[1680448224114,0.05,28104.0,28102.0,0.1059263]
[1680448224319,0.4,28103.0,28101.0,0.1059263]
[1680448224516,0.05,28104.0,28101.0,0.1059263]
[1680448224517,0.63673394,28102.0,28101.0,0.1059263]
[1680448225117,0.60595154,28102.0,28101.0,0.48082576]
[1680448225322,0.60595154,28102.0,28101.0,0.67559946]
[1680448225713,0.60595154,28102.0,28101.0,0.72559946]
[1680448226221,0.60595154,28102.0,28101.0,0.85269701]
[1680448226516,0.13843934,28102.0,28101.0,0.85269701]
[1680448226913,0.05,28110.0,28101.0,0.72559946]
[1680448227119,0.11922174,28107.0,28106.0,0.3007]
[1680448227520,0.11922174,28107.0,28106.0,0.67750414]
[1680448227718,0.11922174,28107.0,28106.0,0.37680414]
[1680448228216,0.11922174,28107.0,28106.0,0.42680414]
[1680448228418,0.11922174,28107.0,28106.0,0.37680414]
[1680448229925,0.11922174,28104.0,28103.0,0.10581623]
[1680448230118,0.11922174,28104.0,28101.0,0.3007]
[1680448230119,0.11922174,28104.0,28102.0,0.05]
[1680448230423,0.11922174,28104.0,28103.0,0.37287228]
[1680448230626,0.11922174,28104.0,28102.0,0.45155466]
[1680448230825,0.11922174,28104.0,28103.0,0.05]
[1680448231012,0.11922174,28104.0,28103.0,0.42929992]
[1680448231211,0.13477879,28104.0,28103.0,0.37929992]
[1680448231412,0.11922174,28104.0,28103.0,0.37929992]
[1680448232221,0.11922174,28104.0,28103.0,0.48515535]
[1680448232417,0.13477968,28104.0,28103.0,0.48515535]
[1680448232617,0.13477968,28104.0,28103.0,0.10585543]
[1680448232812,0.43547968,28104.0,28103.0,0.38065319]
[1680448233722,0.43547968,28104.0,28101.0,0.10585543]
[1680448234024,0.05,28103.0,28101.0,0.10585543]
[1680448234725,0.05,28103.0,28100.0,0.10585543]
[1680448234921,0.11922174,28101.0,28100.0,0.10588867]
[1680448235413,0.11922174,28101.0,28100.0,0.50470212]
[1680448235618,0.11922174,28101.0,28100.0,0.39881345]
[1680448235821,0.41992174,28101.0,28100.0,0.39881345]
[1680448236015,0.41992174,28101.0,28099.0,0.50625942]
[1680448236327,0.05,28100.0,28099.0,0.50625942]
[1680448237221,0.41992174,28101.0,28099.0,0.50625942]
[1680448237824,0.05,28100.0,28099.0,0.40032617]
[1680448238317,0.05,28100.0,28098.0,0.47727947]
[1680448238717,0.05,28100.0,28098.0,0.52934108]
[1680448238917,0.05,28100.0,28098.0,0.47727947]
[1680448239122,0.05,28100.0,28097.0,0.10593325]
[1680448239322,0.3007,28098.0,28097.0,0.10593325]
[1680448239731,0.41992174,28098.0,28096.0,0.10593325]
[1680448239917,0.3507,28097.0,28095.0,0.10593325]
[1680448240429,0.3507,28097.0,28096.0,0.08474455]
[1680448241035,0.51922174,28094.0,28093.0,0.01233945]
[1680448241229,0.81992174,28094.0,28093.0,0.01233945]
[1680448241530,0.81992174,28094.0,28092.0,0.10593325]
[1680448241723,0.05,28093.0,28092.0,0.10593325]
[1680448242624,0.11922174,28091.0,28090.0,0.10593325]
[1680448243526,0.41992174,28091.0,28090.0,0.37847967]
[1680448243729,0.7039,28091.0,28085.0,0.15593325]
[1680448243924,0.72062174,28086.0,28083.0,0.10593325]
[1680448244427,0.72062174,28086.0,28084.0,0.10593325]
[1680448244622,0.72062174,28086.0,28084.0,0.05]
[1680448244623,0.05,28085.0,28084.0,0.05]
[1680448244828,0.05,28085.0,28081.0,0.05]
[1680448245023,0.41992174,28083.0,28081.0,0.05]
[1680448245431,0.41992174,28083.0,28082.0,0.39637032]
[1680448246029,0.41992174,28083.0,28081.0,0.41007911]
[1680448247231,0.41992174,28083.0,28082.0,0.05]
[1680448247632,0.41992174,28083.0,28082.0,0.44276335]
[1680448248342,0.41992174,28083.0,28082.0,0.39276335]
[1680448248636,0.41992174,28083.0,28078.0,0.05]
[1680448248637,0.11922174,28074.0,28070.0,0.10592648]
[1680448248939,0.74596,28082.0,28067.0,0.35069321]
[1680448248940,0.3007,28077.0,28071.0,0.45662648]
[1680448249240,0.03879833,28073.0,28072.0,0.41256336]
[1680448249437,0.3007,28077.0,28072.0,0.41256336]
[1680448249438,0.05,28076.0,28072.0,0.46256336]
[1680448249630,0.3007,28077.0,28072.0,0.46256336]
[1680448250036,0.3007,28077.0,28073.0,0.05]
[1680448250432,0.3007,28077.0,28074.0,0.41284318]
[1680448250731,0.3007,28080.0,28075.0,0.05]
[1680448250934,0.3507,28083.0,28077.0,0.3007]
[1680448251133,0.3507,28083.0,28080.0,0.3007]
[1680448251134,0.3007,28083.0,28080.0,0.3007]
[1680448251341,0.3007,28088.0,28080.0,0.3007]
[1680448251530,0.3007,28088.0,28081.0,0.45202653]
[1680448251731,0.3007,28088.0,28082.0,0.05]
[1680448252239,0.3007,28088.0,28083.0,0.38294261]
[1680448252533,0.3007,28088.0,28075.0,0.05]
[1680448252534,0.4,28080.0,28075.0,0.05]
[1680448252733,0.3007,28078.0,28069.0,0.05]
[1680448253135,0.05,28077.0,28068.0,0.3067]
[1680448253439,0.05,28077.0,28072.0,0.40180304]
[1680448253440,0.4,28074.0,28072.0,0.40180304]
[1680448253636,0.3007,28074.0,28070.0,0.43078819]
[1680448253842,0.3007,28074.0,28070.0,0.05]
[1680448254141,0.3007,28074.0,28068.0,0.41001622]
[1680448254142,0.3507,28074.0,28071.0,0.05]
[1680448254346,0.3007,28074.0,28071.0,0.44483631]
[1680448254640,0.3007,28074.0,28071.0,0.05]
[1680448254839,0.3007,28074.0,28072.0,0.38896078]
[1680448255142,0.03913498,28073.0,28072.0,0.38896078]
[1680448256636,0.08913498,28073.0,28072.0,0.38896078]
[1680448256841,0.08913498,28073.0,28067.0,0.05]
[1680448257028,0.3007,28070.0,28067.0,0.05]
[1680448257438,0.03913498,28073.0,28068.0,0.40865615]
[1680448257634,0.08913498,28073.0,28069.0,0.05]
[1680448257839,0.03913498,28073.0,28069.0,0.05]
[1680448258142,0.03913498,28073.0,28070.0,0.37344091]
[1680448258330,0.03913498,28073.0,28071.0,0.05]
[1680448258529,0.3007,28075.0,28071.0,0.05]
[1680448258842,0.3007,28075.0,28072.0,0.39744129]
[1680448259037,0.3007,28075.0,28073.0,0.05]
[1680448259433,0.3007,28075.0,28074.0,0.38599651]
[1680448260931,0.3007,28075.0,28072.0,0.40332171]
[1680448261343,0.05,28074.0,28072.0,0.40332171]
[1680448261644,0.05,28074.0,28069.0,0.3007]
[1680448262238,0.05,28071.0,28069.0,0.3007]
[1680448262441,0.05,28073.0,28070.0,0.42527442]
[1680448262743,0.05,28073.0,28071.0,0.05]
[1680448262744,0.3007,28072.0,28071.0,0.05]
[1680448262945,0.3007,28072.0,28070.0,0.37527442]
[1680448263545,0.05,28071.0,28070.0,0.37527442]
[1680448264136,0.3007,28072.0,28070.0,0.37527442]
[1680448264439,0.05,28071.0,28068.0,0.37947656]
[1680448264642,0.05,28071.0,28064.0,0.3152]
[1680448264836,0.05,28071.0,28065.0,0.05]
[1680448265036,0.3007,28072.0,28065.0,0.43337798]
[1680448265238,0.3007,28072.0,28066.0,0.3007]
[1680448265434,0.3007,28072.0,28067.0,0.05]
[1680448265638,0.3007,28072.0,28067.0,0.45586226]
[1680448266143,0.3007,28069.0,28067.0,0.40586226]
[1680448266438,0.05,28068.0,28067.0,0.40586226]
[1680448266646,0.3007,28072.0,28067.0,0.40586226]
[1680448266647,0.05,28070.0,28067.0,0.40586226]
[1680448266843,0.3007,28072.0,28067.0,0.40586226]
[1680448267140,0.3007,28072.0,28068.0,0.05]
[1680448268042,0.05,28071.0,28069.0,0.40141554]
[1680448268343,0.6014,28072.0,28070.0,0.05]
[1680448268545,0.6014,28072.0,28064.0,0.05]
[1680448268739,0.6014,28072.0,28067.0,0.05]
[1680448269043,0.05,28071.0,28067.0,0.05]
[1680448269340,0.05,28068.0,28063.0,0.35442785]
[1680448269547,0.05,28068.0,28064.0,0.05]
[1680448269844,0.3007,28069.0,28064.0,0.05]
[1680448270040,0.04094843,28067.0,28066.0,0.05]
[1680448270244,0.05,28068.0,28066.0,0.05]
[1680448270446,0.3007,28069.0,28067.0,0.38353265]
[1680448270638,0.3007,28069.0,28066.0,0.44540394]
[1680448270846,0.3007,28069.0,28068.0,0.05]
[1680448271045,0.3007,28069.0,28064.0,0.05]
[1680448271746,0.3007,28069.0,28065.0,0.38791064]
[1680448271945,0.05,28068.0,28066.0,0.05]
[1680448272135,0.05,28068.0,28065.0,0.38791064]
[1680448272340,0.05,28068.0,28067.0,0.39934096]
[1680448272641,0.05,28068.0,28061.0,0.3507]
[1680448272642,0.05,28068.0,28064.0,0.37584486]
[1680448272848,0.3007,28069.0,28065.0,0.05]
[1680448273347,0.3007,28069.0,28066.0,0.38439082]
[1680448273547,0.3007,28069.0,28067.0,0.05]
[1680448273744,0.3007,28069.0,28066.0,0.38439082]
[1680448273940,0.3007,28069.0,28067.0,0.05]
[1680448274336,0.3007,28072.0,28068.0,0.3007]
[1680448275243,0.3007,28072.0,28069.0,0.05]
[1680448276341,0.3007,28077.0,28071.0,0.3007]
[1680448276648,0.05,28076.0,28071.0,0.3007]
[1680448276847,0.3007,28077.0,28071.0,0.3007]
[1680448277050,0.3007,28077.0,28072.0,0.05]
[1680448277450,0.05,28075.0,28072.0,0.05]
[1680448278044,0.3007,28077.0,28072.0,0.05]
[1680448278239,0.3007,28077.0,28074.0,0.3007]
[1680448278544,0.6065,28082.0,28075.0,0.38927683]
[1680448278750,0.05,28083.0,28079.0,0.3007]
[1680448279065,0.05,28084.0,28079.0,0.3007]
[1680448279444,0.05,28084.0,28082.0,0.3007]
[1680448279749,0.05,28086.0,28083.0,0.3784357]
[1680448279947,0.3007,28091.0,28085.0,0.3007]
[1680448280155,0.3007,28094.0,28088.0,0.3007]
[1680448280452,0.3007,28094.0,28091.0,0.3007]
[1680448280845,0.3007,28097.0,28092.0,0.38332892]
[1680448281045,0.3007,28097.0,28091.0,0.3007]
[1680448281446,0.3507,28097.0,28091.0,0.6014]
[1680448281762,0.05,28096.0,28092.0,0.38723017]
[1680448281948,0.3507,28097.0,28092.0,0.43723017]
[1680448281949,0.3007,28097.0,28092.0,0.43723017]
[1680448282150,0.3007,28102.0,28094.0,0.3007]
[1680448282457,0.3007,28102.0,28095.0,0.40672847]
[1680448282650,0.05,28099.0,28095.0,0.40672847]
[1680448283040,0.05,28099.0,28097.0,0.3007]
[1680448283247,0.05,28099.0,28095.0,0.40672847]
[1680448283248,0.3507,28099.0,28095.0,0.40672847]
[1680448283552,0.3007,28099.0,28092.0,0.05]
[1680448283753,0.3007,28099.0,28093.0,0.05]
[1680448283942,0.3007,28102.0,28095.0,0.3007]
[1680448284141,0.05,28101.0,28095.0,0.3507]
[1680448284352,0.05,28101.0,28096.0,0.91681404]
[1680448284847,0.05,28101.0,28098.0,0.3007]
[1680448285255,0.05,28101.0,28099.0,0.40480753]
[1680448285846,0.3007,28102.0,28099.0,0.40480753]
[1680448286257,0.3007,28102.0,28098.0,0.3773736]
[1680448286451,0.3007,28102.0,28097.0,0.08339128]
[1680448286648,0.3007,28102.0,28099.0,0.05]
[1680448287453,0.3007,28102.0,28097.0,0.08339128]
[1680448287454,0.05,28101.0,28097.0,0.03339128]
[1680448287849,0.05,28101.0,28095.0,0.3007]
[1680448288051,0.05,28101.0,28098.0,0.05]
[1680448288346,0.3507,28102.0,28096.0,0.38478488]
[1680448288551,0.05,28100.0,28096.0,0.38478488]
[1680448288854,0.05,28100.0,28096.0,0.45027778]
[1680448289046,0.05,28100.0,28099.0,0.05]
[1680448289651,0.05,28101.0,28097.0,0.05]
[1680448289856,0.3007,28102.0,28097.0,0.05]
[1680448290058,0.05,28101.0,28098.0,0.3007]
[1680448290259,0.05,28101.0,28099.0,0.05]
[1680448290447,0.05,28104.0,28099.0,0.05]
[1680448290647,0.05,28104.0,28100.0,0.38343867]
[1680448290956,0.05,28104.0,28101.0,0.05]
[1680448291155,0.3007,28105.0,28100.0,0.38343867]
[1680448291354,0.05,28108.0,28102.0,0.05]
[1680448291651,0.05,28108.0,28101.0,0.3007]
[1680448291854,0.05,28108.0,28104.0,0.3007]
[1680448293257,0.05,28110.0,28104.0,0.3007]
[1680448294148,0.05,28110.0,28107.0,0.3007]
[1680448294355,0.05,28110.0,28100.0,0.05300283]
[1680448294356,0.4,28108.0,28100.0,0.05300283]
[1680448294557,0.3007,28104.0,28098.0,0.3007]
[1680448294959,0.05,28103.0,28098.0,0.3007]
[1680448295461,0.3007,28101.0,28098.0,0.3007]
[1680448295753,0.05,28100.0,28098.0,0.3007]
[1680448296355,0.05,28103.0,28099.0,0.05]
[1680448296559,0.05,28103.0,28098.0,0.3007]
[1680448297859,0.3007,28101.0,28098.0,0.3007]
[1680448298162,0.05,28100.0,28095.0,0.3007]
[1680448299861,0.05,28100.0,28092.0,0.6211]
[1680448300062,0.3007,28098.0,28096.0,0.01830427]
[1680448300357,0.05,28097.0,28089.0,0.05]
[1680448300572,0.3007,28095.0,28089.0,0.05]
[1680448300754,0.05,28097.0,28089.0,0.05]
[1680448301264,0.3007,28095.0,28088.0,0.3007]
[1680448301458,0.3007,28092.0,28085.0,0.3007]
[1680448301659,0.3007,28089.0,28083.0,0.05359462]
[1680448301960,0.3007,28086.0,28081.0,0.3007]
[1680448302166,0.3007,28086.0,28081.0,0.05398654]
[1680448302365,0.3007,28086.0,28076.0,0.3254]
[1680448302665,0.05,28085.0,28077.0,0.05]
[1680448303165,0.05,28085.0,28078.0,0.37741466]
[1680448303362,0.3007,28083.0,28077.0,0.05]
[1680448303659,0.3007,28083.0,28076.0,0.37814998]
[1680448303859,0.3007,28080.0,28076.0,0.05274998]
[1680448304070,0.3007,28080.0,28077.0,0.05]
[1680448304457,0.3007,28080.0,28074.0,0.35454524]
[1680448304458,0.06808619,28079.0,28075.0,0.05]
[1680448304766,0.06808619,28079.0,28073.0,0.05]
[1680448305161,0.06808619,28079.0,28076.0,0.05]
[1680448305356,0.01808619,28079.0,28076.0,0.05]
[1680448305759,0.05,28082.0,28077.0,0.38524506]
[1680448306066,0.3507,28083.0,28078.0,0.05]
[1680448306266,0.05,28082.0,28078.0,0.05]
[1680448306466,0.05,28082.0,28080.0,0.05]
[1680448306960,0.3007,28081.0,28075.0,0.05206845]
[1680448307164,0.3007,28077.0,28072.0,0.05]
[1680448307363,0.3007,28077.0,28070.0,0.05]
[1680448308069,0.3007,28077.0,28071.0,0.40536679]
[1680448308457,0.05,28076.0,28071.0,0.40536679]
[1680448308769,0.05,28076.0,28068.0,0.3197]
[1680448309570,0.05,28076.0,28072.0,0.05]
[1680448310069,0.05,28076.0,28066.0,0.35512428]
[1680448310070,0.6539,28073.0,28065.0,0.05]
[1680448310260,0.3007,28066.0,28059.0,0.44017739]
[1680448310459,0.3007,28066.0,28057.0,0.06313503]
[1680448310664,0.3007,28066.0,28060.0,0.22260002]
[1680448310864,0.3007,28066.0,28059.0,0.3007]
[1680448311157,0.3007,28066.0,28061.0,0.37476812]
[1680448311364,0.3007,28066.0,28060.0,0.37808286]
[1680448311561,0.3007,28066.0,28057.0,0.05240575]
[1680448311774,0.3007,28063.0,28061.0,0.05]
[1680448312278,0.4,28059.0,28053.0,0.06313503]
[1680448312578,0.4,28059.0,28046.0,0.42767948]
[1680448312579,0.3007,28054.0,28046.0,0.3007]
[1680448313067,0.3007,28058.0,28049.0,0.3007]
[1680448313068,0.3007,28055.0,28049.0,0.3007]
[1680448313270,0.3007,28058.0,28047.0,0.59609457]
[1680448313460,0.3007,28058.0,28050.0,0.38149894]
[1680448313663,0.3507,28062.0,28056.0,0.3007]
[1680448313863,0.05,28062.0,28059.0,0.3007]
[1680448314164,0.05,28062.0,28060.0,0.02230156]
[1680448314563,0.4,28057.0,28050.0,0.06313503]
[1680448314872,0.3007,28059.0,28050.0,0.3007]
[1680448315071,0.03753376,28056.0,28050.0,0.3007]
[1680448315371,0.05,28057.0,28050.0,0.3007]
[1680448315372,0.05,28057.0,28051.0,0.44807841]
[1680448315873,0.05,28057.0,28051.0,0.05]
[1680448316169,0.04333583,28056.0,28051.0,0.05]
[1680448316367,0.34403583,28056.0,28051.0,0.05]
[1680448316565,0.3007,28053.0,28051.0,0.05]
[1680448316870,0.3007,28052.0,28051.0,0.05]
[1680448317069,0.3007,28052.0,28047.0,0.05]
[1680448317263,0.7007,28052.0,28047.0,0.05]
[1680448317472,0.4,28051.0,28047.0,0.05]
[1680448317670,0.3007,28052.0,28047.0,0.05]
[1680448318065,0.7007,28052.0,28047.0,0.05]
[1680448318271,0.3007,28049.0,28047.0,0.05]
[1680448318877,0.4,28048.0,28041.0,0.3007]
[1680448319173,0.3007,28046.0,28041.0,0.3007]
[1680448319368,0.05,28053.0,28044.0,0.3007]
[1680448319672,0.05,28051.0,28047.0,0.3007]
[1680448319870,0.05,28051.0,28050.0,0.3007]
[1680448320268,0.05,28051.0,28050.0,0.69980684]
[1680448320475,0.45,28051.0,28043.0,0.3007]
[1680448320778,0.05,28048.0,28046.0,0.3007]
[1680448320966,0.05,28048.0,28047.0,0.3007]
[1680448321369,0.05,28055.0,28047.0,0.70617591]
[1680448321573,0.05,28055.0,28050.0,0.3007]
[1680448321774,0.03662391,28054.0,28050.0,0.3007]
[1680448321984,0.03662391,28054.0,28051.0,0.3877366]
[1680448322175,0.3007,28058.0,28051.0,0.3877366]
[1680448322671,0.3007,28055.0,28047.0,0.3007]
[1680448322876,0.3007,28058.0,28047.0,0.3007]
[1680448323279,0.3007,28058.0,28047.0,0.3507]
[1680448323475,0.3007,28058.0,28048.0,0.40273444]
[1680448323679,0.3007,28058.0,28052.0,0.3007]
[1680448324571,0.05,28057.0,28052.0,0.7007]
[1680448324777,0.05,28061.0,28057.0,0.3007]
[1680448325075,0.05,28060.0,28057.0,0.3007]
[1680448325277,0.05,28060.0,28058.0,0.39917155]
[1680448327077,0.05,28061.0,28058.0,0.39917155]
[1680448327275,0.16944553,28102.0,28058.0,0.39917155]
[1680448327276,0.3003,28071.0,28060.0,0.3007]
[1680448327480,0.07171427,28066.0,28060.0,0.3007]
[1680448327774,0.07171427,28066.0,28063.0,0.3007]
[1680448328174,0.07171427,28066.0,28064.0,0.37650212]
[1680448328375,0.0275949,28067.0,28064.0,0.37650212]
[1680448328580,0.0275949,28067.0,28066.0,0.3007]
[1680448328973,0.0275949,28067.0,28066.0,0.70252584]
[1680448329173,9.49e-05,28067.0,28066.0,0.70252584]
[1680448329373,0.05,28069.0,28066.0,0.70252584]
[1680448329578,0.05,28069.0,28066.0,1.00322584]
[1680448329774,0.3007,28077.0,28066.0,1.00322584]
[1680448329978,0.05,28071.0,28069.0,0.3007]
[1680448330285,0.05,28070.0,28069.0,0.3007]
[1680448330482,0.05,28071.0,28069.0,0.3007]
[1680448330676,0.05,28073.0,28070.0,0.37532691]
[1680448330876,0.05,28073.0,28069.0,0.71048821]
[1680448331071,0.05,28073.0,28069.0,0.3007]
[1680448331280,0.05,28073.0,28070.0,0.41011081]
[1680448332079,0.05,28073.0,28066.0,0.3507]
[1680448332384,0.05,28073.0,28066.0,0.05]
[1680448332577,0.3007,28071.0,28067.0,0.05]
[1680448332977,0.3007,28071.0,28070.0,0.05]
[1680448333381,0.3007,28071.0,28064.0,0.3507]
[1680448333979,0.3007,28071.0,28065.0,0.3794992]
[1680448334987,0.3007,28068.0,28065.0,0.3794992]
[1680448335184,0.6014,28068.0,28060.0,0.3007]
[1680448335481,0.3007,28065.0,28060.0,0.3007]
[1680448335888,0.3007,28065.0,28062.0,0.39550332]
[1680448336084,0.3007,28063.0,28057.0,0.05]
[1680448336280,0.3007,28060.0,28057.0,0.05]
[1680448336685,0.6014,28060.0,28057.0,0.05]
[1680448337189,0.6014,28060.0,28053.0,0.3007]
[1680448337375,0.3007,28056.0,28053.0,0.3007]
[1680448338788,0.05,28055.0,28053.0,0.3007]
[1680448339287,0.05,28059.0,28053.0,0.3007]
[1680448339788,0.05,28059.0,28054.0,0.37903691]
[1680448339987,0.3507,28063.0,28056.0,0.6014]
[1680448339988,0.05,28063.0,28056.0,0.6014]
[1680448340184,0.05,28063.0,28061.0,0.3007]
[1680448340383,0.05,28064.0,28061.0,0.3007]
[1680448340581,0.05,28065.0,28062.0,0.40534623]
[1680448340782,0.05,28070.0,28064.0,0.3007]
[1680448340981,0.00634502,28068.0,28067.0,0.3007]
[1680448341390,0.05,28070.0,28067.0,0.68188244]
[1680448341690,0.00501443,28068.0,28067.0,0.68188244]
[1680448342187,0.05,28074.0,28067.0,0.3007]
[1680448342389,0.05,28074.0,28064.0,0.3007]
[1680448342390,0.3007,28073.0,28065.0,0.05]
[1680448342592,0.3007,28070.0,28065.0,0.05]
[1680448342783,0.30571499,28073.0,28065.0,0.05]
[1680448343092,0.3007,28069.0,28066.0,0.05]
[1680448343287,0.3007,28069.0,28068.0,0.05]
[1680448343990,0.3507,28069.0,28062.0,0.05]
[1680448344288,0.3007,28063.0,28062.0,0.05]
[1680448344488,0.3007,28063.0,28057.0,0.05]
[1680448344992,0.3007,28063.0,28059.0,0.05]
[1680448345982,0.3007,28063.0,28058.0,0.05]
[1680448346485,0.3007,28063.0,28055.0,0.05]
[1680448346690,0.05,28062.0,28056.0,0.22266727]
[1680448347089,0.05,28062.0,28055.0,0.22266727]
[1680448347290,0.05,28062.0,28057.0,0.3007]
[1680448347485,0.05,28064.0,28058.0,0.52336727]
[1680448347691,0.05,28064.0,28058.0,0.5943919]
[1680448347892,0.05,28064.0,28058.0,0.27266727]
[1680448348084,0.05,28064.0,28059.0,0.38790558]
[1680448348284,0.05,28061.0,28059.0,0.38790558]
[1680448348491,0.05,28061.0,28060.0,0.3007]
[1680448348895,0.05,28061.0,28060.0,0.67808622]
[1680448349196,0.05,28069.0,28060.0,0.90072333]
[1680448349390,0.05,28069.0,28060.0,0.67808622]
[1680448349589,0.00857456,28068.0,28060.0,0.67808622]
[1680448349989,0.05,28067.0,28060.0,0.72808622]
[1680448350193,0.05,28067.0,28061.0,0.05]
[1680448350698,0.05,28067.0,28062.0,0.37086884]
[1680448351289,0.00857456,28068.0,28063.0,0.3007]
[1680448351495,0.00857456,28068.0,28063.0,0.3507]
[1680448351799,0.00857456,28068.0,28064.0,0.40058199]
[1680448351993,0.05,28071.0,28065.0,0.22260334]
[1680448352195,0.05,28074.0,28065.0,0.22260334]
[1680448352387,0.05,28074.0,28066.0,0.38406833]
[1680448352696,0.00456273,28072.0,28066.0,0.38406833]
[1680448352990,0.00456273,28072.0,28066.0,0.05]
[1680448353196,0.05,28074.0,28066.0,0.05]
[1680448353496,0.7507,28078.0,28067.0,0.40489044]
[1680448353889,0.05,28073.0,28067.0,0.40489044]
[1680448354298,0.7507,28078.0,28067.0,0.45489044]
[1680448355199,0.7507,28078.0,28068.0,0.53520808]
[1680448355700,0.05,28074.0,28069.0,0.4006365]
[1680448356100,0.05,28074.0,28069.0,0.7013365]
[1680448356489,0.05,28074.0,28072.0,0.3007]
[1680448356688,0.05,28078.0,28072.0,0.3007]
[1680448356992,0.05,28078.0,28075.0,0.3007]
[1680448357191,0.05,28077.0,28075.0,0.3007]
[1680448357391,0.05,28078.0,28076.0,0.39544375]
[1680448357592,0.3007,28080.0,28076.0,0.39544375]
[1680448357798,0.3007,28077.0,28073.0,0.05]
[1680448358191,0.3007,28077.0,28076.0,0.05]
[1680448358593,0.3507,28077.0,28074.0,0.41297426]
[1680448358792,0.3507,28077.0,28076.0,0.00500318]
[1680448358994,0.3507,28077.0,28074.0,0.41297426]
[1680448359394,0.3449,28077.0,28074.0,0.41297426]
[1680448359994,0.3449,28077.0,28075.0,0.00506857]
[1680448360191,0.05,28076.0,28075.0,0.00506857]
[1680448360596,0.05,28076.0,28075.0,0.39871611]
[1680448360997,0.3007,28080.0,28075.0,0.44871611]
[1680448361293,0.3007,28080.0,28075.0,0.05506857]
[1680448361294,0.3007,28077.0,28075.0,0.05506857]
[1680448361798,0.3507,28077.0,28075.0,0.00506857]
[1680448362003,0.3507,28077.0,28070.0,0.3007]
[1680448362304,0.3507,28077.0,28071.0,0.00982789]
[1680448362803,0.05,28076.0,28071.0,0.00982789]
[1680448364503,0.3007,28077.0,28071.0,0.05982789]
[1680448364803,0.05,28076.0,28072.0,0.39419185]
[1680448365195,0.05,28079.0,28073.0,0.05]
[1680448365400,0.3507,28080.0,28073.0,0.05]
[1680448365603,0.3507,28080.0,28074.0,0.41085265]
[1680448365792,0.05,28079.0,28074.0,0.41085265]
[1680448365998,0.05,28079.0,28075.0,0.05]
[1680448366406,0.05,28079.0,28076.0,0.37068194]
[1680448366600,0.3507,28080.0,28077.0,0.05]
[1680448366802,0.3007,28080.0,28077.0,0.05]
[1680448367002,0.3007,28080.0,28078.0,0.40547852]
[1680448367306,0.05,28079.0,28078.0,0.40547852]
[1680448367806,0.05,28079.0,28076.0,0.40331775]
[1680448368007,0.05,28081.0,28077.0,0.05]
[1680448368211,0.05,28082.0,28077.0,0.05]
[1680448368402,0.05,28082.0,28078.0,0.39225908]
[1680448368798,0.05,28082.0,28077.0,0.37445651]
[1680448369002,0.05,28082.0,28078.0,0.05]
[1680448369300,0.05,28082.0,28079.0,0.40278101]
[1680448369502,0.3007,28080.0,28079.0,0.40278101]
[1680448369706,0.3507,28080.0,28072.0,0.06313503]
[1680448369899,0.05,28079.0,28072.0,0.06313503]
[1680448370408,0.05,28079.0,28073.0,0.39101827]
[1680448370707,0.3007,28080.0,28074.0,0.05]
[1680448370905,0.05,28082.0,28074.0,0.05]
[1680448370906,0.3507,28082.0,28074.0,0.05]
[1680448371105,0.3507,28082.0,28075.0,0.38307321]
[1680448371311,0.3507,28082.0,28076.0,0.05]
[1680448371613,0.3507,28082.0,28077.0,0.37666234]
[1680448371810,0.3507,28082.0,28078.0,0.05]
[1680448372202,0.3007,28082.0,28079.0,0.05]
[1680448372706,0.3007,28082.0,28080.0,0.37093799]
[1680448372903,0.3007,28085.0,28080.0,0.37093799]
[1680448373103,0.3007,28085.0,28081.0,0.05]
[1680448373308,0.05,28084.0,28080.0,0.37093799]
[1680448373712,0.3007,28088.0,28081.0,0.05]
[1680448374107,0.3007,28088.0,28082.0,0.39221737]
[1680448374305,0.05,28087.0,28082.0,0.39221737]
[1680448374505,0.05,28087.0,28083.0,0.05]
[1680448374704,0.05,28092.0,28083.0,0.05]
[1680448374705,0.05,28090.0,28083.0,0.05]
[1680448374906,0.05,28090.0,28084.0,0.3913638]
[1680448375106,0.05,28090.0,28084.0,0.40750253]
[1680448375307,0.05,28090.0,28085.0,0.05]
[1680448375809,0.05,28092.0,28086.0,0.37264945]